Workbook

Sheet 2必修课成绩 (hidden)
B1: 课程号 | C1: 100616M022 | D1: 100844M001 | E1: 100844M002 | F1: 100844M013 | G1: 100844X005 | H1: 100925P014 | I1: 100925P015 | J1: 100925T001 | K1: 100925T002 | L1: 100925T005 | M1: 100925T143 | N1: 100925T186 | O1: 100925T191 | P1: 100925T192 | Q1: 100925T193 | R1: 100925T195 | S1: 100925T196 | T1: 100925T197 | U1: 101200X001 | V1: 101500X001
B2: 课程名 | C2: 高等数学D | D2: 思想道德修养与法律基础 | E2: 中国近现代史纲要 | F2: 马克思主义基本原理概论 | G2: 形势与政策教育 | H2: 英语技能实践 | I2: 社会实践与社会调查 | J2: 综合英语（Ⅰ） | K2: 综合英语（Ⅱ） | L2: 英语语音 | M2: 英语短篇小说选读 | N2: 英语散文选读 | O2: 基础写作 | P2: 初级英语听力（I） | Q2: 口语（I） | R2: 记叙文写作 | S2: 初级英语听力（II） | T2: 口语（II） | U2: 军事训练（Ⅰ） | V2: 入学教育与安全教育 | X2: 挂科门数 | Y2: 优良率 | Z2: 必修课加权成绩
A3: 学生 | B3: 学 分 | C3: 3 | D3: 2 | E3: 2 | F3: 2 | G3: 2 | H3: 1 | I3: 1 | J3: 6 | K3: 6 | L3: 2 | M3: 2 | N3: 2 | O3: 2 | P3: 2 | Q3: 2 | R3: 2 | S3: 2 | T3: 2 | U3: 2 | V3: 1 | Z3: 46
B4: 学分比重
A5: 学 号 | B5: 姓 名
A6: 2017011934 | B6: 阿依加马丽·阿卜迪克日木 | C6: =17*3 -> 51.000 | D6: 83.0 | E6: 98.0 | F6: 81.0 | G6: 88.0 | H6: 95.0 | I6: 93.0 | J6: 71.0 | K6: 74.0 | L6: 89.0 | M6: 55.0 | N6: 73.0 | O6: 80.0 | P6: 81.0 | Q6: 96.0 | R6: 69.0 | S6: 80.0 | T6: 88.0 | U6: 92.0 | V6: 60.0 | X6: 1 | Y6: 65.0% | Z6: 77.76086957
A7: 2017011935 | B7: 白元格 | C7: 62.000 | D7: 83.0 | E7: 99.0 | F7: 84.0 | G7: 85.0 | H7: 94.0 | I7: 94.0 | J7: 63.0 | K7: 77.0 | L7: 85.0 | M7: 67.0 | N7: 82.0 | O7: 81.0 | P7: 71.0 | Q7: 96.0 | R7: 86.0 | S7: 83.0 | T7: 88.0 | U7: 90.0 | V7: 62.0 | X7: =COUNTIF(D7:W7,"<=60") -> 0 | Y7: 70.0% | Z7: 79.04347826
A8: 2017011936 | B8: 陈俊霖 | C8: 93.000 | D8: 89.0 | E8: 98.0 | F8: 90.0 | G8: 91.0 | H8: 96.0 | I8: 97.0 | J8: 76.0 | K8: 89.0 | L8: 88.0 | M8: 88.0 | N8: 86.0 | O8: 84.0 | P8: 92.0 | Q8: 97.0 | R8: 90.0 | S8: 90.0 | T8: 93.0 | U8: 93.0 | V8: 81.0 | X8: 0 | Y8: 95.0% | Z8: 88.7173913
A9: 2017011937 | B9: 李秋莹 | C9: 79.000 | D9: 93.0 | E9: 98.0 | F9: 93.000 | G9: 93.0 | H9: 96.0 | I9: 98.0 | J9: 88.0 | K9: 87.0 | L9: 88.0 | M9: 76.0 | N9: 82.0 | O9: 94.0 | P9: 92.0 | Q9: 97.0 | R9: 93.0 | S9: 85.0 | T9: 93.0 | U9: 88.0 | V9: 61.000 | X9: 0 | Y9: 85.0% | Z9: 88.52173913
A10: 2017011938 | B10: 李雪霏 | C10: 84 | D10: 91 | E10: 98 | F10: 89 | G10: 86 | H10: 95 | I10: 93 | J10: 73 | K10: 81 | L10: 85 | M10: 72 | N10: 84 | O10: 90 | P10: 90 | Q10: 97 | R10: 91 | S10: 87 | T10: 93 | U10: 90 | V10: 79 | X10: 0 | Y10: 85.0% | Z10: 85.41304348
A11: 2017011939 | B11: 李亚静 | C11: 92.000 | D11: 89.0 | E11: 91.0 | F11: 91.0 | G11: 89.0 | H11: 91.0 | I11: 93.0 | J11: 71.0 | K11: 72.0 | L11: 81.0 | M11: 82.0 | N11: 82.0 | O11: 84.0 | P11: 61.0 | Q11: 95.0 | R11: 76.0 | S11: 65.0 | T11: 87.0 | U11: 91.0 | V11: 85.0 | X11: 0 | Y11: 75.0% | Z11: 81.10869565
A12: 2017011940 | B12: 林芊语 | C12: 87.000 | D12: 85.0 | E12: 92.0 | F12: 91.0 | G12: 88.0 | H12: 91.0 | I12: 97.0 | J12: 79.0 | K12: 93.0 | L12: 90.0 | M12: 90.0 | N12: 87.0 | O12: 94.0 | P12: 98.0 | Q12: 95.0 | R12: 93.0 | S12: 90.0 | T12: 95.0 | U12: 89.0 | V12: 85.0 | X12: 0 | Y12: 95.0% | Z12: 89.56521739
A13: 2017011941 | B13: 刘静萱 | C13: 77.000 | D13: 87.0 | E13: 87.0 | F13: 85.0 | G13: 91.0 | H13: 94.0 | I13: 97.0 | J13: 84.0 | K13: 91.0 | L13: 89.0 | M13: 71.0 | N13: 91.0 | O13: 90.0 | P13: 92.0 | Q13: 97.0 | R13: 90.0 | S13: 90.0 | T13: 96.0 | U13: 86.0 | V13: 72.0 | X13: 0 | Y13: 85.0% | Z13: 87.56521739
A14: 2017011942 | B14: 刘柳 | C14: 61.000 | D14: 91.0 | E14: 96.0 | F14: 81.0 | G14: 92.0 | H14: 93.0 | I14: 96.0 | J14: 72.0 | K14: 87.0 | L14: 85.0 | M14: 72.0 | N14: 80.0 | O14: 84.0 | P14: 68.0 | Q14: 93.0 | R14: 85.0 | S14: 81.0 | T14: 87.0 | U14: 90.0 | V14: 85.0 | X14: 0 | Y14: 80.0% | Z14: 82.19565217
A15: 2017011944 | B15: 闵小霖 | C15: 64.000 | D15: 94.0 | E15: 90.0 | F15: 94.0 | G15: 87.0 | H15: 94.0 | I15: 97.0 | J15: 81.0 | K15: 84.0 | L15: 90.0 | M15: 81.0 | N15: 78.0 | O15: 89.0 | P15: 91.0 | Q15: 96.0 | R15: 87.0 | S15: 82.0 | T15: 90.0 | U15: 90.0 | V15: 77.0 | X15: 0 | Y15: 85.0% | Z15: 85.39130435
A16: 2017011945 | B16: 牛晓静 | C16: 79.000 | D16: 89.0 | E16: 93.0 | F16: 88.0 | G16: 92.0 | H16: 92.0 | I16: 94.0 | J16: 71.0 | K16: 77.0 | L16: 85.0 | M16: 77.0 | N16: 77.0 | O16: 84.0 | P16: 72.0 | Q16: 94.0 | R16: 86.0 | S16: 80.0 | T16: 88.0 | U16: 87.0 | V16: 79.0 | X16: 0 | Y16: 65.0% | Z16: 82.04347826
A17: 2017011946 | B17: 孙佩瑶 | C17: 68.000 | D17: 83.0 | E17: 87.0 | F17: 80.0 | G17: 88.0 | H17: 90.0 | I17: 95.0 | J17: 79.0 | K17: 83.0 | L17: 84.0 | M17: 89.0 | N17: 77.0 | O17: 81.0 | P17: 81.0 | Q17: 95.0 | R17: 85.0 | S17: 64.0 | T17: 89.0 | U17: 86.0 | V17: 73.0 | X17: 0 | Y17: 75.0% | Z17: 82
A18: 2017011947 | B18: 孙玉 | C18: 84.000 | D18: 90.0 | E18: 99.0 | F18: 86.0 | G18: 89.0 | H18: 90.0 | I18: 95.0 | J18: 67.0 | K18: 87.0 | L18: 86.0 | M18: 78.0 | N18: 84.0 | O18: 87.0 | P18: 83.0 | Q18: 94.0 | R18: 87.0 | S18: 85.0 | T18: 90.0 | U18: 91.0 | V18: 77.0 | X18: 0 | Y18: 85.0% | Z18: 84.69565217
A19: 2017011948 | B19: 王婧 | C19: 84.000 | D19: 83.0 | E19: 94.0 | F19: 84.0 | G19: 86.0 | H19: 91.0 | I19: 95.0 | J19: 70.0 | K19: 82.0 | L19: 84.0 | M19: 89.0 | N19: 87.0 | O19: 84.0 | P19: 84.0 | Q19: 95.0 | R19: 88.0 | S19: 81.0 | T19: 92.0 | U19: 87.0 | V19: 72.0 | X19: 0 | Y19: 90.0% | Z19: 83.86956522
A20: 2017011949 | B20: 王思远 | C20: 70.000 | D20: 89.0 | E20: 93.0 | F20: 88.0 | G20: 86.0 | H20: 90.0 | I20: 95.0 | J20: 69.0 | K20: 79.0 | L20: 86.0 | M20: 83.0 | N20: 81.0 | O20: 84.0 | P20: 80.0 | Q20: 92.0 | R20: 88.0 | S20: 80.0 | T20: 89.0 | U20: 85.0 | V20: 74.0 | X20: 0 | Y20: 80.0% | Z20: 81.84782609
A21: 2017011950 | B21: 王盈晖 | C21: 69.000 | D21: 80.0 | E21: 94.0 | F21: 83.0 | G21: 90.0 | H21: 93.0 | I21: 95.0 | J21: 79.0 | K21: 88.0 | L21: 89.0 | M21: 81.0 | N21: 86.0 | O21: 92.0 | P21: 90.0 | Q21: 95.0 | R21: 92.0 | S21: 85.0 | T21: 94.0 | U21: 88.0 | V21: 70.0 | X21: 0 | Y21: 85.0% | Z21: 85.76086957
A22: 2017011951 | B22: 希吉尔 | C22: 71.000 | D22: 86.0 | E22: 92.0 | F22: 83.0 | G22: 88.0 | H22: 95.0 | I22: 95.0 | J22: 74.0 | K22: 87.0 | L22: 89.0 | M22: 70.0 | N22: 80.0 | O22: 88.0 | P22: 86.0 | Q22: 96.0 | R22: 88.0 | S22: 87.0 | T22: 90.0 | U22: 92.0 | V22: 76.0 | X22: 0 | Y22: 80.0% | Z22: 84.23913043
A23: 2017011952 | B23: 谢捡英 | C23: 94.000 | D23: 82.0 | E23: 93.0 | F23: 86.0 | G23: 88.0 | H23: 92.0 | I23: 93.0 | J23: 76.0 | K23: 85.0 | L23: 84.0 | M23: 71.0 | N23: 91.0 | O23: 88.0 | P23: 81.0 | Q23: 92.0 | R23: 85.0 | S23: 80.0 | T23: 87.0 | U23: 82.0 | V23: 81.0 | X23: 0 | Y23: 90.0% | Z23: 84.65217391
A24: 2017011953 | B24: 杨柳依 | C24: 98.000 | D24: 94.0 | E24: 94.0 | F24: 95.0 | G24: 89.0 | H24: 92.0 | I24: 93.0 | J24: 82.0 | K24: 81.0 | L24: 83.0 | M24: 80.0 | N24: 88.0 | O24: 87.0 | P24: 91.0 | Q24: 94.0 | R24: 88.0 | S24: 91.0 | T24: 89.0 | U24: 88.0 | V24: 78.0 | X24: 0 | Y24: 95.0% | Z24: 87.76086957
A25: 2017011954 | B25: 尹一航 | C25: 99 | D25: 92 | E25: 97 | F25: 88 | G25: 85 | H25: 92 | I25: 90 | J25: 84 | K25: 80 | L25: 83 | M25: 83 | N25: 76 | O25: 85 | P25: 85 | Q25: 96 | R25: 85 | S25: 86 | T25: 93 | U25: 92 | V25: 77 | X25: 0 | Y25: 90.0% | Z25: 86.78695652
A26: 2017011955 | B26: 赵洁 | C26: 87.000 | D26: 80.0 | E26: 94.0 | F26: 88.0 | G26: 88.0 | H26: 93.0 | I26: 93.0 | J26: 76.0 | K26: 93.0 | L26: 84.0 | M26: 84.0 | N26: 91.0 | O26: 89.0 | P26: 88.0 | Q26: 95.0 | R26: 92.0 | S26: 91.0 | T26: 90.0 | U26: 91.0 | V26: 80.0 | X26: 0 | Y26: 95.0% | Z26: 87.63043478
A27: 2017011956 | B27: 赵迎 | C27: 95.000 | D27: 94.0 | E27: 95.0 | F27: 89.0 | G27: 87.0 | H27: 93.0 | I27: 93.0 | J27: 83.0 | K27: 89.0 | L27: 85.0 | M27: 81.0 | N27: 90.0 | O27: 89.0 | P27: 91.0 | Q27: 96.0 | R27: 92.0 | S27: 91.0 | T27: 95.0 | U27: 85.0 | V27: 66.0 | X27: 0 | Y27: 95.0% | Z27: 88.89130435
A28: 2017011957 | B28: 达吾拉江·巴图尔 | C28: 76.000 | D28: 93.0 | E28: 95.0 | F28: 86.0 | G28: 89.0 | H28: 95.0 | I28: 97.0 | J28: 79.0 | K28: 82.0 | L28: 93.0 | M28: 86.0 | N28: 85.0 | O28: 88.0 | P28: 89.0 | Q28: 97.0 | R28: 86.0 | S28: 86.0 | T28: 93.0 | U28: 94.0 | V28: 74.0 | X28: 0 | Y28: 85.0% | Z28: 86.52173913
A29: 2017011958 | B29: 董涛 | C29: 78.000 | D29: 85.0 | E29: 95.0 | F29: 86.0 | G29: 86.0 | H29: 95.0 | I29: 88.0 | J29: 71.0 | K29: 82.0 | L29: 80.0 | M29: 73.0 | N29: 78.0 | O29: 84.0 | P29: 78.0 | Q29: 92.0 | R29: 84.0 | S29: 61.0 | T29: 86.0 | U29: 92.0 | V29: 81.0 | X29: 0 | Y29: 70.0% | Z29: 81.2173913
A30: 2017011959 | B30: 黄星晖 | C30: 86.000 | D30: 83.0 | E30: 93.0 | F30: 83.0 | G30: 93.0 | H30: 91.0 | I30: 89.0 | J30: 63.0 | K30: 66.0 | L30: 78.0 | M30: 74.0 | N30: 70.0 | O30: 83.0 | P30: 66.0 | Q30: 91.0 | R30: 82.0 | S30: 60.0 | T30: 86.0 | U30: 90.0 | V30: 74.0 | X30: 0 | Y30: 60.0% | Z30: 77.17391304
A31: 2017011960 | B31: 亓玉乾 | C31: 91.000 | D31: 87.0 | E31: 92.0 | F31: 87.0 | G31: 84.0 | H31: 90.0 | I31: 89.0 | J31: 72.0 | K31: 87.0 | L31: 80.0 | M31: 77.0 | N31: 78.0 | O31: 85.0 | P31: 81.0 | Q31: 97.0 | R31: 83.0 | S31: 80.0 | T31: 89.0 | U31: 92.0 | V31: 76.0 | X31: 0 | Y31: 80.0% | Z31: 84.04347826
A32: 2017011961 | B32: 袁赫 | C32: 67.000 | D32: 80.0 | E32: 96.0 | F32: 84.0 | G32: 86.0 | H32: 60.0 | I32: 0 | J32: 69.0 | K32: 68.0 | L32: 60.0 | M32: 70.0 | N32: 75.0 | O32: 77.0 | P32: 60.0 | Q32: 69.0 | R32: 69.0 | S32: 60.0 | T32: 60.0 | U32: 85.0 | V32: 68.0 | X32: 1 | Y32: 25.0% | Z32: 69.84782609
A33: 2017011962 | B33: 张钰 | C33: 95.000 | D33: 83.0 | E33: 94.0 | F33: 87.0 | G33: 89.0 | H33: 90.0 | I33: 89.0 | J33: 75.0 | K33: 85.0 | L33: 81.0 | M33: 70.0 | N33: 74.0 | O33: 86.0 | P33: 80.0 | Q33: 95.0 | R33: 85.0 | S33: 77.0 | T33: 90.0 | U33: 93.0 | V33: 75.0 | X33: 0 | Y33: 75.0% | Z33: 84.06521739
A34: 2017011963 | B34: 钟智颖 | C34: 89.000 | D34: 86.0 | E34: 85.0 | F34: 89.0 | G34: 88.0 | H34: 90.0 | I34: 89.0 | J34: 66.0 | K34: 69.0 | L34: 82.0 | M34: 69.0 | N34: 68.0 | O34: 80.0 | P34: 74.0 | Q34: 95.0 | R34: 85.0 | S34: 60.0 | T34: 88.0 | U34: 90.0 | V34: 79.0 | X34: 0 | Y34: 65.0% | Z34: 78.54347826
A35: 2017011964 | B35: 陈阿丽娜
A36: 2017011965 | B36: 陈芊颖
A37: 2017011966 | B37: 胡芬
A38: 2017011967 | B38: 胡红
A39: 2017011968 | B39: 贾婷
A40: 2017011969 | B40: 李嘉欣
A41: 2017011970 | B41: 李桢
A42: 2017011971 | B42: 刘月
A43: 2017011972 | B43: 吕晶
A44: 2017011973 | B44: 谭怡敏
A45: 2017011974 | B45: 唐杰婧
A46: 2017011975 | B46: 王一凡
A47: 2017011976 | B47: 王依甜
A48: 2017011977 | B48: 魏嘉祯
A49: 2017011978 | B49: 温馨
A50: 2017011979 | B50: 吴函慧
A51: 2017011980 | B51: 肖云舫
A52: 2017011981 | B52: 谢华
A53: 2017011982 | B53: 熊瑶
A54: 2017011983 | B54: 杨茜
A55: 2017011984 | B55: 张慧影
A56: 2017011985 | B56: 周知悦
A57: 2017011986 | B57: 佐拉力·多力昆江
A58: 2017011987 | B58: 雷永兴
A59: 2017011988 | B59: 刘丰恺
A60: 2017011989 | B60: 孙伟
A61: 2017011990 | B61: 王圣钊
A62: 2017011991 | B62: 王者风
A63: 2017011992 | B63: 杨壮
A74: 补考成绩高于60分按60分算
A75: 缓考、学分替代学生须上交缓考证明材料
A76: 民族生（综合教务系统有明确显示）及格分数线低于普通学生，注意
A77: 缓考中无成绩的科目不计入综合测评

Sheet 3选修课成绩 (hidden)
B1: 课程号 | C1: 100514X002 | D1: 100855G004 | E1: 100888G008 | F1: 100925T104 | G1: 100925T142 | H1: 100925T181 | I1: 101400G002 | J1: 100723G002 | K1: 100866G010 | L1: 100866G008 | M1: 100877G009 | N1: 100514G016 | O1: 100855G018 | P1: 100866G002 | Q1: 100888G010 | R1: 100855G001 | S1: 100855G022 | T1: 100866G006 | U1: 100925T065 | V1: 100855G028 | W1: 100866G011 | X1: 100877G012 | Y1: 100888G013 | Z1: 100855G025 | AA1: 100877G006 | AB1: 100719G001 | AC1: 100866G001 | AD1: 100925G096 | AE1: 100925T070 | AF1: 100724G007 | AG1: 100877G018 | AH1: 100866G017 | AI1: 100877G017 | AJ1: 100514G039 | AK1: 100724G001 | AL1: 100866G004 | AM1: 100877G015 | AN1: 100855G023 | AO1: 100101G001 | AP1: 100514G032 | AQ1: 100627G006
B2: 课程名 | C2: 大学计算机基础实践 | D2: 外国文学名著赏析 | E2: 大学生心理素质调适 | F2: 英语戏剧选读 | G2: 英语学习导论 | H2: 跨文化交际 | I2: 信息检索与网络资源利用 | J2: 经济法概论 | K2: 音乐审美与名曲博览 | L2: 外国音乐赏析 | M2: 西方哲学思潮 | N2: 网页设计与网站建设 | O2: 国学经典研读 | P2: 素描 | Q2: 口才训练 | R2: 大学语文 | S2: 人类学入门 | T2: 乐理与视唱 | U2: 第二外语(Ⅰ)(日语) | V2: 中国传统文化拓展与实践 | W2: 合唱艺术（双语） | X2: 公司法 | Y2: 汉字与中国传统文化 | Z2: 中国现代文学名家评介 | AA2: 两岸关系与台海问题 | AB2: 经济学基础 | AC2: 水彩画技法 | AD2: 英美电影欣赏 | AE2: 第二外语(Ⅰ)(法语) | AF2: 企业文化 | AG2: 西方政治思想史 | AH2: 陶笛基础教程 | AI2: 现代政治学 | AJ2: C语言程序设计（B） | AK2: 决策与评价 | AL2: 书法鉴赏 | AM2: 当代世界经济与政治 | AN2: 社会研究与当代中国 | AO2: 地球科学概论 | AP2: Linux系统及应用 | AQ2: 物理技术与实践
A3: 学生 | B3: 学 分 | C3: 1 | D3: 2 | E3: 1 | F3: 2 | G3: 1 | H3: 2 | I3: 2 | J3: 2 | K3: 2 | L3: 2 | M3: 2 | N3: 2 | O3: 1 | P3: 2 | Q3: 2 | R3: 2 | S3: 2 | T3: 2 | U3: 4 | V3: 1 | W3: 2 | X3: 2 | Y3: 2 | Z3: 2 | AA3: 2 | AB3: 2 | AC3: 2 | AD3: 2 | AE3: 4 | AF3: 1 | AG3: 2 | AH3: 2 | AI3: 2 | AJ3: 4 | AK3: 1 | AL3: 2 | AM3: 2 | AN3: 2 | AO3: 2 | AP3: 2 | AQ3: 2 | AR3: 大一选修课加权平均成绩 | AS3: 不及格科目数
B4: 学分比重 | C4: 0.012987013 | D4: 0.025974026 | E4: 0.012987013 | F4: 0.025974026 | G4: 0.012987013 | H4: 0.025974026 | I4: 0.025974026 | J4: 0.025974026 | K4: 0.025974026 | L4: 0.025974026 | M4: 0.025974026 | N4: 0.025974026 | O4: 0.012987013 | P4: 0.025974026 | Q4: 0.025974026 | R4: 0.025974026 | S4: 0.025974026 | T4: 0.025974026 | U4: 0.051948052 | V4: 0.012987013 | W4: 0.025974026 | X4: 0.025974026 | Y4: 0.025974026 | Z4: 0.025974026 | AA4: 0.025974026 | AB4: 0.025974026 | AC4: 0.025974026 | AD4: 0.025974026 | AE4: 0.051948052 | AF4: 0.012987013 | AG4: 0.025974026 | AH4: 0.025974026 | AI4: 0.025974026 | AJ4: 0.051948052 | AK4: 0.012987013 | AL4: 0.025974026 | AM4: 0.025974026 | AN4: 0.025974026 | AO4: 0.025974026 | AP4: 0.025974026 | AQ4: 0.025974026 | AR4: 1
A5: 学 号 | B5: 姓 名
A6: 2017011934 | B6: 阿依加马丽·阿卜迪克日木 | C6: 86.00 | D6: 86.00 | E6: 90.00 | F6: 87.00 | G6: 73.00 | H6: 85.00 | I6: 67.00 | AR6: =16.34545454/0.2 -> 81.72727270 | AS6: 0
A7: 2017011935 | B7: 白元格 | C7: 93.00 | E7: 94.00 | F7: 90.00 | G7: 85.00 | H7: 82.00 | J7: 86.00 | K7: 62.00 | AR7: =16.58181818/0.2 -> 82.90909090 | AS7: 0
A8: 2017011936 | B8: 陈俊霖 | C8: 97.00 | E8: 89.00 | F8: 87.00 | G8: 94.00 | H8: 93.00 | I8: 90.00 | L8: 95.00 | M8: 90.00 | AR8: =18.3076923/0.2 -> 91.53846150 | AS8: 0
A9: 2017011937 | B9: 李秋莹 | C9: 98.00 | D9: 92.00 | E9: 92.00 | F9: 87.00 | G9: 94.00 | H9: 94.00 | N9: 91.00 | O9: 96.00 | P9: 90.00 | Q9: 89.00 | AR9: =18.325/0.2 -> 91.62500000 | AS9: 0
A10: 2017011938 | B10: 李雪霏 | E10: 94 | G10: 94 | I10: 88 | K10: 73 | L10: 94 | S10: 94 | AA10: 96 | AR10: =17.966666667/0.2 -> 89.83333333 | AS10: 0
A11: 2017011939 | B11: 李亚静 | C11: 86.00 | E11: 95.00 | F11: 83.00 | G11: 93.00 | H11: 78.00 | I11: 80.00 | R11: 88.00 | S11: 91.00 | AR11: =17.13846153/0.2 -> 85.69230765 | AS11: 0
A12: 2017011940 | B12: 林芊语 | E12: 92.00 | G12: 93.00 | H12: 91.00 | L12: 93.00 | T12: 98.00 | U12: 99.00 | AR12: =19.08333333/0.2 -> 95.41666665 | AS12: 0
A13: 2017011941 | B13: 刘静萱 | C13: 82.00 | D13: 90.00 | E13: 94.00 | F13: 88.00 | G13: 95.00 | H13: 85.00 | Q13: 91.00 | U13: 94.00 | V13: 94.00 | W13: 89.00 | X13: 90.00 | AR13: =18.07/0.2 -> 90.35000000 | AS13: 0
A14: 2017011942 | B14: 刘柳 | E14: 97.00 | F14: 90.00 | G14: 90.00 | I14: 77.00 | Y14: 83.00 | AR14: =17.175/0.2 -> 85.87500000 | AS14: 0
A15: 2017011944 | B15: 闵小霖 | E15: 93.00 | G15: 92.00 | H15: 87.00 | L15: 96.00 | M15: 94.00 | Z15: 90.00 | AA15: 91.00 | AR15: =18.35/0.2 -> 91.75000000 | AS15: 0
A16: 2017011945 | B16: 牛晓静 | C16: 95.00 | E16: 93.00 | G16: 90.00 | H16: 83.00 | L16: 88.00 | AR16: =17.71428571/0.2 -> 88.57142855 | AS16: 0
A17: 2017011946 | B17: 孙佩瑶 | E17: 91.00 | F17: 81.00 | G17: 88.00 | H17: 87.00 | U17: 92.00 | W17: 85.00 | X17: 89.00 | AR17: =17.58571429/0.2 -> 87.92857145 | AS17: 0
A18: 2017011947 | B18: 孙玉 | C18: 91.00 | E18: 92.00 | F18: 82.00 | G18: 87.00 | H18: 79.00 | I18: 89.00 | O18: 88.00 | X18: 86.00 | AB18: 93.00 | AC18: 85.00 | AD18: 79.00 | AR18: =17.075/0.2 -> 85.375 | AS18: 0
A19: 2017011948 | B19: 王婧 | C19: 97.00 | E19: 86.00 | F19: 86.00 | G19: 87.00 | H19: 88.00 | M19: 80.00 | O19: 92.00 | X19: 83.00 | AB19: 85.00 | AC19: 86.00 | AE19: 93.00 | AR19: =17.5/0.2 -> 87.5 | AS19: 0
A20: 2017011949 | B20: 王思远 | E20: 93.00 | F20: 89.00 | G20: 87.00 | H20: 77.00 | L20: 94.00 | X20: 77.00 | AF20: 78.00 | AG20: 87.00 | AR20: =17.01538462/0.2 -> 85.0769231 | AS20: 0
A21: 2017011950 | B21: 王盈晖 | E21: 91.00 | F21: 86.00 | G21: 90.00 | H21: 78.00 | U21: 92.00 | X21: 81.00 | AC21: 80.00 | AR21: =17.12857143/0.2 -> 85.64285715 | AS21: 0
A22: 2017011951 | B22: 希吉尔 | E22: 90.00 | F22: 79.00 | G22: 83.00 | H22: 78.00 | U22: 90.00 | W22: 84.00 | X22: 80.00 | AR22: =16.78571429/0.2 -> 83.92857145 | AS22: 0
A23: 2017011952 | B23: 谢捡英 | C23: 62.00 | E23: 91.00 | G23: 88.00 | H23: 94.00 | AB23: 95.00 | AD23: 84.00 | AH23: 81.00 | AI23: 94.00 | AR23: =17.49230769/0.2 -> 87.46153845 | AS23: 0
A24: 2017011953 | B24: 杨柳依 | D24: 87.00 | E24: 96.00 | F24: 90.00 | G24: 94.00 | H24: 95.00 | I24: 85.00 | S24: 88.00 | AG24: 89.00 | AR24: =17.97142857/0.2 -> 89.85714285 | AS24: 0
A25: 2017011954 | B25: 尹一航 | C25: 73 | E25: 89 | F25: 79 | G25: 92 | X25: 96 | AB25: 89 | AI25: 90 | AR25: =17.490909091/0.2 -> 87.45454545 | AS25: 0
A26: 2017011955 | B26: 赵洁 | C26: 91 | G26: 93.0 | I26: 85.0 | K26: 81.0 | AJ26: 88.0 | AR26: =17.36/0.2 -> 86.8 | AS26: 0
A27: 2017011956 | B27: 赵迎 | E27: 92.0 | G27: 94.0 | H27: 91.0 | I27: 88.0 | W27: 88.0 | AB27: 95.0 | AR27: =18.2/0.2 -> 91 | AS27: 0
A28: 2017011957 | B28: 达吾拉江·巴图尔 | E28: 93.0 | F28: 90.0 | G28: 83.0 | H28: 89.0 | N28: 77.0 | Q28: 87.0 | AL28: 80.0 | AR28: =17.033333333/0.2 -> 85.16666667 | AS28: 0
A29: 2017011958 | B29: 董涛 | C29: 87 | D29: 94.0 | E29: 96.0 | F29: 75.0 | G29: 77.0 | H29: 81.0 | N29: 76.0 | AA29: 91.0 | AK29: 87.0 | AM29: 87.0 | AR29: =16.9375/0.2 -> 84.6875 | AS29: 0
A30: 2017011959 | B30: 黄星晖 | C30: 62 | E30: 91.0 | F30: 75.0 | G30: 80.0 | H30: 64.0 | K30: 73.0 | Q30: 87.0 | AM30: 77.0 | AR30: =15.153846154/0.2 -> 75.76923077 | AS30: 0
A31: 2017011960 | B31: 亓玉乾 | C31: 81 | E31: 96.0 | F31: 79.0 | G31: 84.0 | H31: 77.0 | N31: 74.0 | Z31: 87.0 | AN31: 92.0 | AR31: =16.6/0.2 -> 83 | AS31: 0
A32: 2017011961 | B32: 袁赫 | C32: 73 | E32: 89.0 | G32: 66.0 | R32: 86.0 | AO32: 90.0 | AP32: 87.0 | AR32: =16.755555556/0.2 -> 83.77777778 | AS32: 0
A33: 2017011962 | B33: 张钰 | C33: 77 | E33: 94.0 | F33: 86.0 | G33: 86.0 | H33: 88.0 | I33: 89.0 | Z33: 87.0 | AN33: 85.0 | AR33: =17.64/0.2 -> 88.2 | AS33: 0
A34: 2017011963 | B34: 钟智颖 | C34: 91 | E34: 82.0 | G34: 87.0 | AJ34: 83.0 | AK34: 80.0 | AQ34: 83.0 | AR34: =15.236363636/0.2 -> 76.18181818 | AS34: 0

Sheet 综合测评排名
A1: 中国石油大学（北京）外国语学院英语专业本科生综合测评汇总表
A2: 序号 | B2: 学号 | C2: 德育总成绩 | D2: 智育总成绩 | E2: 体育总成绩 | F2: 必修课优良率% | G2: 综合测评成绩 | H2: 专业四级成绩 | I2: 体测成绩 | J2: 不及格门数 | K2: 有无纪律处分
A3: 1 | B3: 2019012205 | C3: 143.00 | D3: 123.75 | E3: 91.00 | F3: 100.00% | G3: 124.32 | H3: 无 | I3: 79.80 | J3: 0 | K3: 无
A4: 2 | B4: 2019012268 | C4: 125.00 | D4: 127.06 | E4: 92.00 | F4: 100.00% | G4: 123.14 | H4: 无 | I4: 87.40 | J4: 0 | K4: 无
A5: 3 | B5: 2019012233 | C5: 110.30 | D5: 117.32 | E5: 90.00 | F5: 100.00% | G5: 113.19 | H5: 无 | I5: 75.70 | J5: 0 | K5: 无
A6: 4 | B6: 2019012266 | C6: 110.00 | D6: 109.20 | E6: 94.00 | F6: 100.00% | G6: 107.84 | H6: 无 | I6: 79.40 | J6: 0 | K6: 无
A7: 5 | B7: 2019012243 | C7: 134.00 | D7: 99.77 | E7: 94.00 | F7: 100.00% | G7: 106.04 | H7: 无 | I7: 81.70 | J7: 0 | K7: 无
A8: 6 | B8: 2019012287 | C8: 111.00 | D8: 99.88 | E8: 96.00 | F8: 100.00% | G8: 101.72 | H8: 无 | I8: 83.00 | J8: 0 | K8: 无
A9: 7 | B9: 2019012260 | C9: 116.50 | D9: 96.77 | E9: 105.50 | F9: 100.00% | G9: 101.59 | H9: 无 | I9: 83.90 | J9: 0 | K9: 无
A10: 8 | B10: 2019012215 | C10: 99.00 | D10: 107.15 | E10: 60.00 | F10: 63.64% | G10: 100.80 | H10: 无 | I10: 免体 | J10: 0 | K10: 无
A11: 9 | B11: 2019012284 | C11: 118.80 | D11: 91.92 | E11: 90.50 | F11: 100.00% | G11: 97.15 | H11: 无 | I11: 64.30 | J11: 0 | K11: 无
A12: 10 | B12: 2019012225 | C12: 116.00 | D12: 97.75 | E12: 53.00 | F12: 100.00% | G12: 96.93 | H12: 无 | I12: 79.50 | J12: 0 | K12: 无
A13: 11 | B13: 2019012218 | C13: 110.00 | D13: 93.04 | E13: 92.50 | F13: 100.00% | G13: 96.38 | H13: 无 | I13: 80.20 | J13: 0 | K13: 无
A14: 12 | B14: 2019012222 | C14: 128.00 | D14: 87.23 | E14: 91.50 | F14: 100.00% | G14: 95.81 | H14: 无 | I14: 79.00 | J14: 0 | K14: 无
A15: 13 | B15: 2019012213 | C15: 110.00 | D15: 92.19 | E15: 84.50 | F15: 100.00% | G15: 94.98 | H15: 无 | I15: 77.10 | J15: 0 | K15: 无
A16: 14 | B16: 2019012286 | C16: 128.20 | D16: 86.48 | E16: 79.00 | F16: 100.00% | G16: 94.07 | H16: 无 | I16: 59.30 | J16: 0 | K16: 无
A17: 15 | B17: 2019012258 | C17: 115.50 | D17: 88.72 | E17: 88.00 | F17: 100.00% | G17: 94.01 | H17: 无 | I17: 73.20 | J17: 0 | K17: 无
A18: 16 | B18: 2019012237 | C18: 109.50 | D18: 89.78 | E18: 92.00 | F18: 100.00% | G18: 93.95 | H18: 无 | I18: 83.20 | J18: 0 | K18: 无
A19: 17 | B19: 2019012203 | C19: 110.50 | D19: 89.85 | E19: 84.00 | F19: 100.00% | G19: 93.40 | H19: 无 | I19: 77.60 | J19: 0 | K19: 无
A20: 18 | B20: 2019012262 | C20: 102.00 | D20: 90.96 | E20: 87.50 | F20: 100.00% | G20: 92.82 | H20: 无 | I20: 70.60 | J20: 0 | K20: 无
A21: 19 | B21: 2019012236 | C21: 104.00 | D21: 89.87 | E21: 90.00 | F21: 100.00% | G21: 92.71 | H21: 无 | I21: 76.20 | J21: 0 | K21: 无
A22: 20 | B22: 2019012200 | C22: 118.90 | D22: 84.98 | E22: 91.50 | F22: 90.91% | G22: 92.42 | H22: 无 | I22: 81.10 | J22: 0 | K22: 无
A23: 21 | B23: 2019012201 | C23: 106.50 | D23: 87.25 | E23: 100.00 | F23: 100.00% | G23: 92.37 | H23: 无 | I23: 83.30 | J23: 0 | K23: 无
A24: 22 | B24: 2019012221 | C24: 108.00 | D24: 89.06 | E24: 83.00 | F24: 100.00% | G24: 92.24 | H24: 无 | I24: 57.00 | J24: 0 | K24: 无
A25: 23 | B25: 2019012229 | C25: 104.50 | D25: 88.06 | E25: 95.00 | F25: 100.00% | G25: 92.04 | H25: 无 | I25: 82.20 | J25: 0 | K25: 无
A26: 24 | B26: 2019012246 | C26: 105.00 | D26: 88.05 | E26: 93.00 | F26: 100.00% | G26: 91.94 | H26: 无 | I26: 79.00 | J26: 0 | K26: 无
A27: 25 | B27: 2019012279 | C27: 107.00 | D27: 87.03 | E27: 93.00 | F27: 90.91% | G27: 91.62 | H27: 无 | I27: 68.20 | J27: 0 | K27: 无
A28: 26 | B28: 2019012259 | C28: 106.00 | D28: 87.79 | E28: 84.00 | F28: 100.00% | G28: 91.05 | H28: 无 | I28: 68.50 | J28: 0 | K28: 无
A29: 27 | B29: 2019012204 | C29: 105.00 | D29: 87.81 | E29: 84.50 | F29: 100.00% | G29: 90.92 | H29: 无 | I29: 79.50 | J29: 0 | K29: 无
A30: 28 | B30: 2019012283 | C30: 111.00 | D30: 83.72 | E30: 101.00 | F30: 90.91% | G30: 90.91 | H30: 无 | I30: 78.00 | J30: 0 | K30: 无
A31: 29 | B31: 2019012231 | C31: 103.00 | D31: 87.09 | E31: 93.00 | F31: 100.00% | G31: 90.86 | H31: 无 | I31: 80.40 | J31: 0 | K31: 无
A32: 30 | B32: 2019012211 | C32: 105.50 | D32: 87.74 | E32: 83.00 | F32: 90.91% | G32: 90.82 | H32: 无 | I32: 73.00 | J32: 0 | K32: 无
A33: 31 | B33: 2019012234 | C33: 102.00 | D33: 86.91 | E33: 94.00 | F33: 90.91% | G33: 90.64 | H33: 无 | I33: 81.80 | J33: 0 | K33: 无
A34: 32 | B34: 2019012216 | C34: 98.50 | D34: 89.32 | E34: 83.00 | F34: 100.00% | G34: 90.52 | H34: 无 | I34: 70.00 | J34: 0 | K34: 无
A35: 33 | B35: 2019012209 | C35: 114.00 | D35: 85.07 | E35: 80.50 | F35: 100.00% | G35: 90.40 | H35: 无 | I35: 60.70 | J35: 0 | K35: 无
A36: 34 | B36: 2019012223 | C36: 101.00 | D36: 86.64 | E36: 94.50 | F36: 100.00% | G36: 90.30 | H36: 无 | I36: 83.10 | J36: 0 | K36: 无
A37: 35 | B37: 2019012235 | C37: 114.00 | D37: 83.64 | E37: 89.00 | F37: 81.82% | G37: 90.25 | H37: 无 | I37: 81.80 | J37: 0 | K37: 无
A38: 36 | B38: 2019012281 | C38: 110.00 | D38: 84.82 | E38: 88.00 | F38: 90.91% | G38: 90.17 | H38: 无 | I38: 79.90 | J38: 0 | K38: 无
A39: 37 | B39: 2019012267 | C39: 109.00 | D39: 84.89 | E39: 89.00 | F39: 100.00% | G39: 90.12 | H39: 无 | I39: 80.40 | J39: 0 | K39: 无
A40: 38 | B40: 2019012252 | C40: 107.50 | D40: 86.01 | E40: 84.00 | F40: 90.91% | G40: 90.11 | H40: 无 | I40: 67.00 | J40: 0 | K40: 无
A41: 39 | B41: 2019012282 | C41: 110.10 | D41: 83.94 | E41: 93.00 | F41: 90.91% | G41: 90.08 | H41: 无 | I41: 82.00 | J41: 0 | K41: 无
A42: 40 | B42: 2019012242 | C42: 98.50 | D42: 86.80 | E42: 95.50 | F42: 100.00% | G42: 90.01 | H42: 无 | I42: 80.60 | J42: 0 | K42: 无
A43: 41 | B43: 2019012277 | C43: 110.00 | D43: 85.15 | E43: 82.00 | F43: 90.91% | G43: 89.81 | H43: 无 | I43: 47.50 | J43: 0 | K43: 无
A44: 42 | B44: 2019012227 | C44: 107.00 | D44: 85.33 | E44: 84.00 | F44: 100.00% | G44: 89.53 | H44: 无 | I44: 61.90 | J44: 0 | K44: 无
A45: 43 | B45: 2019012214 | C45: 109.00 | D45: 85.12 | E45: 81.00 | F45: 72.73% | G45: 89.49 | H45: 无 | I45: 76.80 | J45: 0 | K45: 无
A46: 44 | B46: 2019012269 | C46: 102.50 | D46: 85.90 | E46: 88.50 | F46: 100.00% | G46: 89.48 | H46: 无 | I46: 70.70 | J46: 0 | K46: 无
A47: 45 | B47: 2019012254 | C47: 99.50 | D47: 86.84 | E47: 87.00 | F47: 100.00% | G47: 89.39 | H47: 无 | I47: 71.30 | J47: 0 | K47: 无
A48: 46 | B48: 2019012224 | C48: 113.50 | D48: 82.18 | E48: 91.50 | F48: 72.73% | G48: 89.38 | H48: 无 | I48: 75.20 | J48: 0 | K48: 无
A49: 47 | B49: 2019012244 | C49: 105.00 | D49: 84.61 | E49: 88.50 | F49: 90.91% | G49: 89.08 | H49: 无 | I49: 65.40 | J49: 0 | K49: 无
A50: 48 | B50: 2019012202 | C50: 107.00 | D50: 84.16 | E50: 86.50 | F50: 90.91% | G50: 88.96 | H50: 无 | I50: 79.80 | J50: 0 | K50: 无
A51: 49 | B51: 2019012245 | C51: 101.50 | D51: 85.24 | E51: 89.00 | F51: 100.00% | G51: 88.87 | H51: 无 | I51: 74.80 | J51: 0 | K51: 无
A52: 50 | B52: 2019012239 | C52: 99.50 | D52: 85.60 | E52: 90.00 | F52: 81.82% | G52: 88.82 | H52: 无 | I52: 82.70 | J52: 0 | K52: 无
A53: 51 | B53: 2019012206 | C53: 105.50 | D53: 83.83 | E53: 90.00 | F53: 81.82% | G53: 88.78 | H53: 无 | I53: 74.50 | J53: 0 | K53: 无
A54: 52 | B54: 2019012226 | C54: 98.00 | D54: 87.74 | E54: 76.50 | F54: 90.91% | G54: 88.67 | H54: 无 | I54: 59.60 | J54: 0 | K54: 无
A55: 53 | B55: 2019012256 | C55: 100.50 | D55: 84.59 | E55: 93.50 | F55: 90.91% | G55: 88.66 | H55: 无 | I55: 79.00 | J55: 0 | K55: 无
A56: 54 | B56: 2019012207 | C56: 101.00 | D56: 85.41 | E56: 86.50 | F56: 100.00% | G56: 88.64 | H56: 无 | I56: 67.90 | J56: 0 | K56: 无
A57: 55 | B57: 2019012217 | C57: 98.50 | D57: 84.99 | E57: 84.50 | F57: 100.00% | G57: 87.64 | H57: 无 | I57: 64.70 | J57: 0 | K57: 无
A58: 56 | B58: 2019012238 | C58: 101.00 | D58: 83.20 | E58: 90.50 | F58: 72.73% | G58: 87.49 | H58: 无 | I58: 67.80 | J58: 0 | K58: 无
A59: 57 | B59: 2019012210 | C59: 101.00 | D59: 84.30 | E59: 82.50 | F59: 100.00% | G59: 87.46 | H59: 无 | I59: 69.60 | J59: 0 | K59: 无
A60: 58 | B60: 2019011310 | C60: 91.00 | D60: 86.55 | E60: 86.50 | F60: 93.33% | G60: 87.43 | H60: 无 | I60: 75.70 | J60: 0 | K60: 无
A61: 59 | B61: 2019012278 | C61: 104.00 | D61: 80.74 | E61: 101.00 | F61: 72.73% | G61: 87.42 | H61: 无 | I61: 79.80 | J61: 0 | K61: 无
A62: 60 | B62: 2019012198 | C62: 100.00 | D62: 83.88 | E62: 84.50 | F62: 90.91% | G62: 87.16 | H62: 无 | I62: 66.70 | J62: 0 | K62: 无
A63: 61 | B63: 2019012263 | C63: 123.00 | D63: 76.78 | E63: 81.50 | F63: 36.36% | G63: 86.50 | H63: 无 | I63: 61.10 | J63: 0 | K63: 无
A64: 62 | B64: 2019012250 | C64: 105.70 | D64: 81.01 | E64: 86.50 | F64: 72.73% | G64: 86.49 | H64: 无 | I64: 76.40 | J64: 0 | K64: 无
A65: 63 | B65: 2019012241 | C65: 109.50 | D65: 78.52 | E65: 95.00 | F65: 72.73% | G65: 86.37 | H65: 无 | I65: 83.00 | J65: 0 | K65: 无
A66: 64 | B66: 2019012280 | C66: 96.50 | D66: 83.35 | E66: 83.00 | F66: 90.91% | G66: 85.94 | H66: 无 | I66: 74.80 | J66: 0 | K66: 无
A67: 65 | B67: 2019012275 | C67: 100.00 | D67: 81.18 | E67: 90.50 | F67: 63.64% | G67: 85.88 | H67: 无 | I67: 78.70 | J67: 0 | K67: 无
A68: 66 | B68: 2019012199 | C68: 100.00 | D68: 82.29 | E68: 80.50 | F68: 90.91% | G68: 85.65 | H68: 无 | I68: 60.60 | J68: 0 | K68: 无
A69: 67 | B69: 2019012285 | C69: 103.50 | D69: 79.92 | E69: 87.50 | F69: 63.64% | G69: 85.39 | H69: 无 | I69: 75.70 | J69: 0 | K69: 无
A70: 68 | B70: 2019012248 | C70: 103.00 | D70: 79.70 | E70: 87.00 | F70: 72.73% | G70: 85.09 | H70: 无 | I70: 78.60 | J70: 0 | K70: 无
A71: 69 | B71: 2019012272 | C71: 100.00 | D71: 80.58 | E71: 81.00 | F71: 72.73% | G71: 84.50 | H71: 无 | I71: 65.10 | J71: 0 | K71: 无
A72: 70 | B72: 2019012253 | C72: 103.70 | D72: 78.81 | E72: 85.00 | F72: 63.64% | G72: 84.41 | H72: 无 | I72: 68.00 | J72: 0 | K72: 无
A73: 71 | B73: 2019012264 | C73: 102.50 | D73: 79.05 | E73: 84.00 | F73: 63.64% | G73: 84.23 | H73: 无 | I73: 67.70 | J73: 0 | K73: 无
A74: 72 | B74: 2019012274 | C74: 98.50 | D74: 78.98 | E74: 88.50 | F74: 54.55% | G74: 83.83 | H74: 无 | I74: 75.10 | J74: 0 | K74: 无
A75: 73 | B75: 2019012208 | C75: 98.00 | D75: 80.19 | E75: 80.50 | F75: 36.36% | G75: 83.78 | H75: 无 | I75: 56.50 | J75: 0 | K75: 无
A76: 74 | B76: 2019012276 | C76: 103.50 | D76: 76.65 | E76: 92.50 | F76: 36.36% | G76: 83.60 | H76: 无 | I76: 76.00 | J76: 1 | K76: 无
A77: 75 | B77: 2019012247 | C77: 108.30 | D77: 74.36 | E77: 97.50 | F77: 36.36% | G77: 83.46 | H77: 无 | I77: 77.80 | J77: 0 | K77: 无
A78: 76 | B78: 2019012240 | C78: 97.00 | D78: 79.18 | E78: 84.00 | F78: 27.27% | G78: 83.22 | H78: 无 | I78: 72.00 | J78: 0 | K78: 无
A79: 77 | B79: 2019012273 | C79: 103.00 | D79: 77.75 | E79: 81.00 | F79: 60.00% | G79: 83.13 | H79: 无 | I79: 68.40 | J79: 1 | K79: 无
A80: 78 | B80: 2019012270 | C80: 100.50 | D80: 77.85 | E80: 84.50 | F80: 36.36% | G80: 83.04 | H80: 无 | I80: 60.00 | J80: 0 | K80: 无
A81: 79 | B81: 2019012212 | C81: 99.50 | D81: 78.51 | E81: 81.50 | F81: 63.64% | G81: 83.01 | H81: 无 | I81: 66.60 | J81: 0 | K81: 无
A82: 80 | B82: 2018011977 | C82: 98.00 | D82: 77.66 | E82: 88.00 | F82: 50.00% | G82: 82.76 | H82: 无 | I82: 0.00 | J82: 0 | K82: 无
A83: 81 | B83: 2019012261 | C83: 107.00 | D83: 75.20 | E83: 82.00 | F83: 36.36% | G83: 82.24 | H83: 无 | I83: 65.70 | J83: 0 | K83: 无
A84: 82 | B84: 2019012249 | C84: 112.00 | D84: 73.40 | E84: 83.00 | F84: 27.27% | G84: 82.08 | H84: 无 | I84: 72.00 | J84: 0 | K84: 无
A85: 83 | B85: 2019012230 | C85: 98.50 | D85: 75.71 | E85: 86.50 | F85: 54.55% | G85: 81.35 | H85: 无 | I85: 64.00 | J85: 0 | K85: 无
A86: 84 | B86: 2019012257 | C86: 99.50 | D86: 76.07 | E86: 81.50 | F86: 27.27% | G86: 81.30 | H86: 无 | I86: 65.90 | J86: 0 | K86: 无
A87: 85 | B87: 2019012228 | C87: 96.00 | D87: 76.53 | E87: 81.00 | F87: 36.36% | G87: 80.87 | H87: 无 | I87: 60.00 | J87: 0 | K87: 无
A88: 86 | B88: 2019012251 | C88: 98.00 | D88: 76.17 | E88: 78.50 | F88: 45.45% | G88: 80.77 | H88: 无 | I88: 59.30 | J88: 0 | K88: 无
A89: 87 | B89: 2019010514 | C89: 86.50 | D89: 77.51 | E89: 91.50 | F89: 57.14% | G89: 80.71 | H89: 无 | I89: 83.00 | J89: 0 | K89: 无
A90: 88 | B90: 2019012265 | C90: 97.50 | D90: 74.67 | E90: 89.00 | F90: 45.45% | G90: 80.67 | H90: 无 | I90: 70.20 | J90: 0 | K90: 无
A91: 89 | B91: 2019012232 | C91: 98.00 | D91: 72.45 | E91: 86.00 | F91: 16.67% | G91: 78.92 | H91: 无 | I91: 60.80 | J91: 0 | K91: 无
A92: 90 | B92: 2019012271 | C92: 99.00 | D92: 62.12 | E92: 87.00 | F92: 9.09% | G92: 71.98 | H92: 无 | I92: 53.00 | J92: 3 | K92: 无
A97: 综合测评成绩等于智育成绩*0.7+德育成绩*0.2+体育成绩*0.1
A98: 德育总成绩=辅导员打分+德育加分
A99: 智育总成绩=必修课加权成绩*0.8+选修课加权成绩*0.2+智育加分
A100: 体育总成绩=体育课成绩+体育加分
